bitfinex-derivatives/quotes_ETHF0:USTF0_20251223
["timestamp","ask_amount","ask_price","bid_price","bid_amount"]
[1766482595201,8.665,2956.4,2955.3,3.382]
[1766482595403,0.16922,2956.7,2955.5,1.20705845]
[1766482595604,0.0038226,2956.7,2955.8,1.20705845]
[1766482595810,0.0038226,2956.7,2955.9,3.382]
[1766482596006,3.382,2956.6,2955.9,3.382]
[1766482597209,0.0038226,2956.7,2955.9,3.382]
[1766482597408,2.9755,2956.6,2955.9,3.382]
[1766482597612,0.0038226,2956.7,2955.9,3.382]
[1766482597808,3.3858226,2956.7,2955.9,3.382]
[1766482598116,3.3858226,2956.7,2956.0,1.20705845]
[1766482598417,0.00507125,2957.1,2956.0,1.20705845]
[1766482598720,3.382,2957.0,2955.9,3.382]
[1766482599217,3.382,2957.0,2956.0,3.383]
[1766482599406,3.382,2957.0,2956.1,3.383]
[1766482599604,1.81581603,2959.2,2956.3,0.00507125]
[1766482599915,3.383,2957.4,2956.4,4.59005845]
[1766482600613,0.00507125,2957.2,2956.4,4.59005845]
[1766482600809,3.3858008,2957.4,2956.4,4.59005845]
[1766482600810,0.0028008,2957.4,2956.4,4.59005845]
[1766482601013,2.7736,2957.2,2956.4,4.59005845]
[1766482601208,2.3613,2957.2,2956.4,4.59005845]
[1766482601915,0.00507125,2957.1,2956.4,4.59005845]
[1766482602416,0.00507125,2957.1,2956.4,3.383]
[1766482606512,0.00507125,2957.1,2956.4,4.5917453]
[1766482606919,2.9633,2957.1,2956.6,1.2087453]
[1766482607118,2.5436,2957.1,2956.6,1.2087453]
[1766482607319,1.7042,2957.1,2956.6,1.2087453]
[1766482607819,1.7042,2957.1,2956.5,1.2087453]
[1766482608119,1.70927125,2957.1,2956.5,1.2087453]
[1766482611916,3.3858008,2957.4,2956.9,1.2087453]
[1766482612116,0.16916,2957.8,2956.9,1.2087453]
[1766482612324,3.383,2957.7,2957.1,1.2087453]
[1766482612620,3.383,2957.8,2957.3,1.2087453]
[1766482612820,3.38807125,2957.8,2957.3,1.2087453]
[1766482613020,1.3778653,2958.5,2957.1,3.383]
[1766482613021,3.383,2957.9,2957.5,1.2087453]
[1766482613214,3.38542251,2957.9,2957.5,1.2087453]
[1766482613414,0.00242251,2957.9,2957.5,1.2087453]
[1766482613609,2.251e-05,2957.9,2957.5,1.2087453]
[1766482613824,2.95332251,2958.0,2957.5,1.2087453]
[1766482614121,2.95839376,2958.0,2957.5,1.2087453]
[1766482614323,0.00507125,2958.0,2957.7,1.2087453]
[1766482614813,0.00507125,2958.0,2957.7,0.0028543]
[1766482615014,0.00890067,2958.0,2957.7,0.0028543]
[1766482617818,6.7e-07,2958.0,2957.7,0.0028543]
[1766482618618,6.7e-07,2958.0,2957.4,4.5917453]
[1766482618924,0.00338151,2958.0,2957.4,4.5917453]
[1766482619730,0.00338151,2958.0,2957.4,4.59547504]
[1766482621525,0.00338151,2958.0,2957.4,3.38672974]
[1766482621720,0.00338151,2958.0,2956.5,1.3779753]
[1766482621721,3.382,2957.9,2957.0,1.2087453]
[1766482621930,3.382,2957.9,2957.0,4.5907453]
[1766482622227,3.382,2957.9,2957.0,3.382]
[1766482622423,3.382,2957.9,2957.1,1.2087453]
[1766482622622,3.382,2957.9,2957.0,3.382]
[1766482622823,3.382,2957.9,2957.1,1.2087453]
[1766482624229,3.382,2957.9,2957.0,3.38489336]
[1766482624421,3.382,2957.9,2957.2,1.2087453]
[1766482624617,0.00338151,2958.0,2957.5,1.2087453]
[1766482624824,3.382,2957.9,2957.5,1.2087453]
[1766482625621,0.00338151,2958.0,2957.5,1.2087453]
[1766482625821,3.382,2957.9,2957.2,1.2087453]
[1766482628130,3.382,2957.9,2957.4,1.2087453]
[1766482628630,3.382,2957.9,2957.3,1.2087453]
[1766482629831,3.382,2957.9,2957.0,3.38489336]
[1766482630036,3.382,2957.9,2957.1,1.2087453]
[1766482632043,3.382,2957.9,2957.0,3.38489336]
[1766482635750,3.382,2957.9,2957.0,0.00289336]
[1766482636445,3.382,2957.8,2957.3,1.2087453]
[1766482637946,0.00338151,2958.0,2957.3,1.2087453]
[1766482638249,3.382,2957.9,2957.1,4.5907453]
[1766482640944,0.00338151,2958.0,2957.1,4.5907453]
[1766482641149,3.382,2957.9,2957.3,1.2087453]
[1766482641754,3.382,2957.9,2957.1,4.5907453]
[1766482642649,3.382,2957.9,2957.3,1.2087453]
[1766482645652,0.00338151,2958.0,2957.3,1.2087453]
[1766482645851,3.382,2957.9,2957.3,1.2087453]
[1766482646054,3.382,2957.9,2957.1,3.382]
[1766482646252,3.382,2957.9,2957.1,4.5907453]
[1766482648351,3.382,2957.9,2957.3,1.2087453]
[1766482648744,0.17253151,2958.0,2957.5,1.2087453]
[1766482649046,3.382,2957.9,2957.4,1.2087453]
[1766482649245,3.382,2957.9,2957.1,3.382]
[1766482649454,3.382,2957.9,2957.3,1.2087453]
[1766482650643,3.382,2957.8,2957.3,1.2087453]
[1766482651252,0.17253151,2958.0,2957.3,1.2087453]
[1766482651451,3.382,2957.9,2957.3,1.2087453]
[1766482652154,3.382,2957.9,2957.1,3.382]
[1766482652349,3.382,2957.9,2957.1,4.5907453]
[1766482654155,3.382,2957.9,2957.1,3.382]
[1766482654457,3.382,2957.9,2957.1,4.5907453]
[1766482655854,3.382,2957.9,2957.1,3.382]
[1766482656055,3.382,2957.9,2957.1,4.5907453]
[1766482656757,3.382,2957.9,2957.3,1.2087453]
[1766482658848,0.17253151,2958.0,2957.3,1.2087453]
[1766482659053,3.55453151,2958.0,2957.1,3.382]
[1766482661047,3.55453151,2958.0,2957.2,1.2087453]
[1766482665961,3.55453151,2958.0,2957.1,3.382]
[1766482669567,3.55453151,2958.0,2957.2,1.20798478]
[1766482670068,3.55453151,2958.0,2957.1,3.382]
[1766482671068,0.17253151,2958.0,2957.1,3.382]
[1766482671268,3.382,2957.9,2957.1,3.382]
[1766482685188,1.37716478,2957.5,2956.1,4.24655571]
[1766482685395,1.20798478,2957.3,2955.9,3.382]
[1766482685688,8.749,2957.4,2955.9,3.382]
[1766482685884,8.749,2957.4,2956.1,1.20798478]
[1766482686281,8.749,2957.4,2956.2,3.382]
[1766482686488,8.749,2957.4,2956.3,0.00768561]
[1766482688495,0.16919,2957.2,2956.3,0.00768561]
[1766482688699,3.382,2957.1,2956.3,0.00768561]
[1766482690505,3.382,2957.1,2956.2,3.382]
[1766482690709,3.382,2957.1,2956.2,2.9373]
[1766482691611,3.382,2957.1,2956.2,2.94021916]
[1766482692702,3.382,2957.1,2956.4,0.00507125]
[1766482693302,5.823,2957.0,2956.4,0.00507125]
[1766482693508,9.206,2957.0,2956.4,0.00507125]
[1766482694302,9.206,2957.0,2956.2,0.00291916]
[1766482695311,9.206,2957.0,2956.3,0.00507125]
[1766482696412,9.206,2957.0,2956.2,0.00291916]
[1766482697504,9.206,2957.0,2956.3,0.00507125]
[1766482697910,0.16919,2957.2,2956.3,0.00507125]
[1766482698112,9.208,2957.1,2956.3,0.00507125]
[1766482698309,0.16919,2957.2,2956.3,0.00507125]
[1766482698515,3.383,2957.1,2956.3,3.38807125]
[1766482699309,3.383,2957.1,2956.3,0.00507125]
[1766482700412,3.383,2957.1,2956.2,0.00291916]
[1766482701216,3.383,2957.1,2956.4,0.00507125]
[1766482701518,3.383,2957.1,2956.2,0.00291916]
[1766482702120,3.383,2957.1,2956.0,3.383]
[1766482703213,3.383,2957.1,2956.0,3.38581873]
[1766482703613,0.16919,2957.2,2956.0,4.59380351]
[1766482703814,8.218,2957.1,2956.0,4.59380351]
[1766482704012,0.16919,2957.2,2956.0,4.59380351]
[1766482704318,0.275,2957.1,2956.0,4.59380351]
[1766482704519,0.16919,2957.2,2956.0,4.59380351]
[1766482704720,3.383,2957.1,2956.3,1.20798478]
[1766482706818,3.383,2957.1,2956.3,4.59098478]
[1766482709618,3.383,2957.1,2956.3,3.383]
[1766482714027,3.383,2957.1,2956.3,4.59098478]
[1766482715418,0.16917,2957.6,2956.3,4.59098478]
[1766482715724,3.638,2957.5,2956.3,4.59098478]
[1766482716529,0.16917,2957.6,2956.3,4.59098478]
[1766482717027,3.583,2957.5,2956.3,4.59098478]
[1766482717831,0.16917,2957.6,2956.3,4.59098478]
[1766482718129,3.704,2957.5,2956.3,4.59098478]
[1766482718723,0.16918,2957.4,2956.3,3.383]
[1766482721732,0.16918,2957.4,2956.0,0.00281873]
[1766482722033,0.16919,2957.3,2956.0,3.38581873]
[1766482722226,3.383,2957.2,2956.0,3.38581873]
[1766482722738,0.16921,2956.9,2956.0,0.00281873]
[1766482722928,7.92,2956.8,2956.0,0.00281873]
[1766482724135,7.92,2956.8,2955.7,4.101]
[1766482724531,8.08922,2956.8,2955.7,4.101]
[1766482725130,8.08922,2956.8,2955.7,4.1036167]
[1766482725332,3.383,2956.7,2956.1,1.20798478]
[1766482725530,2.4912,2956.7,2956.1,1.20798478]
[1766482725828,2.0453,2956.7,2956.1,1.20798478]
[1766482726029,2.0453,2956.7,2956.2,1.20884123]
[1766482728140,2.0453,2956.7,2956.0,4.59184123]
[1766482731537,0.16915,2957.9,2956.5,1.20884123]
[1766482731737,9.211,2957.8,2956.8,1.20884123]
[1766482731945,9.211,2957.8,2956.6,1.20884123]
[1766482732743,9.211,2957.8,2956.8,1.20884123]
[1766482733733,9.211,2957.8,2956.6,1.20884123]
[1766482736539,1.37799123,2957.9,2956.6,1.20884123]
[1766482736739,9.212,2957.8,2956.6,1.20884123]
[1766482741449,9.38116,2957.8,2956.6,1.20884123]
[1766482742240,5.99816,2957.8,2956.6,1.20884123]
[1766482742449,9.212,2957.7,2956.6,1.20884123]
[1766482743938,0.16916,2957.8,2956.8,1.20884123]
[1766482744142,3.55,2957.7,2956.8,1.20884123]
[1766482746750,0.16916,2957.8,2956.8,1.20884123]
[1766482746956,5.829,2957.6,2956.8,1.20884123]
[1766482749158,9.212,2957.5,2956.8,1.20884123]
[1766482749861,0.16916,2957.8,2956.8,1.20884123]
[1766482750159,5.829,2957.5,2956.8,1.20884123]
[1766482750358,3.383,2957.4,2956.8,1.20884123]
[1766482759567,3.383,2957.4,2956.7,1.20884123]
[1766482761374,0.16916,2957.8,2956.7,1.20884123]
[1766482761674,5.829,2957.5,2956.7,1.20884123]
[1766482761874,3.383,2957.4,2956.7,1.20884123]
[1766482764776,3.383,2957.4,2956.5,4.59184123]
[1766482764974,3.383,2957.4,2956.5,3.383]
[1766482765165,1.20884123,2957.1,2956.1,3.383]
[1766482765370,9.212,2957.0,2956.1,3.383]
[1766482772973,9.212,2957.0,2956.1,4.59184123]
[1766482773480,9.212,2957.0,2956.1,3.383]
[1766482776581,9.212,2957.0,2956.2,1.20884123]
[1766482779077,9.212,2957.0,2956.1,3.383]
[1766482779384,9.212,2957.0,2956.1,4.59184123]
[1766482780283,9.212,2957.0,2956.1,3.383]
[1766482781169,9.212,2957.0,2956.1,4.59184123]
[1766482781376,9.212,2957.0,2956.3,1.20884123]
[1766482782082,9.212,2957.0,2956.1,4.59184123]
[1766482788086,9.215,2957.2,2956.5,1.2085289]
[1766482789482,9.215,2957.2,2956.4,3.383]
[1766482795289,9.215,2957.2,2955.9,1.2085289]
[1766482795492,9.215,2957.2,2956.0,3.847]
[1766482799990,9.215,2957.2,2955.9,1.2085289]
[1766482800194,9.215,2957.2,2956.0,3.383]
[1766482801401,0.16919,2957.3,2956.2,1.2085289]
[1766482801595,3.717,2957.2,2956.3,3.383]
[1766482811897,3.717,2957.2,2955.7,0.0026167]
[1766482812099,1.3777389,2957.0,2955.8,3.383]
[1766482812401,3.383,2956.9,2955.8,3.383]
[1766482816603,0.16921,2957.0,2955.8,4.5915289]
[1766482816907,3.383,2956.9,2956.1,1.2085289]
[1766482817107,3.383,2956.9,2956.2,3.383]
[1766482819204,0.16918,2957.5,2956.2,3.383]
[1766482819399,3.445,2957.4,2956.3,1.2085289]
[1766482820306,3.383,2957.3,2956.3,1.2085289]
[1766482820493,3.383,2957.2,2956.3,1.2085289]
[1766482823507,0.16916,2957.8,2956.3,1.2085289]
[1766482823811,8.724,2957.7,2956.3,1.2085289]
[1766482824606,3.383,2957.6,2956.9,1.2085289]
[1766482824809,3.383,2957.6,2956.9,3.383]
[1766482828208,0.00338151,2958.0,2956.9,3.383]
[1766482828417,9.216,2957.9,2956.9,3.383]
[1766482828612,0.00338151,2958.0,2956.9,3.383]
[1766482828914,3.635,2957.9,2956.9,3.383]
[1766482830811,0.00338151,2958.0,2956.9,4.5915289]
[1766482831115,3.383,2957.9,2956.9,4.5915289]
[1766482834013,3.383,2957.9,2956.9,3.383]
[1766482838615,0.00338151,2958.0,2956.9,3.383]
[1766482838914,3.383,2957.9,2956.9,3.383]
[1766482843216,3.382,2957.8,2956.9,3.383]
[1766482845312,0.00338151,2958.0,2957.4,1.2085289]
[1766482845513,3.382,2958.5,2957.4,4.59390974]
[1766482846516,0.00507125,2958.2,2957.4,4.59390974]
[1766482849018,0.16907,2959.3,2958.1,1.2085289]
[1766482849224,1.2085289,2959.9,2958.4,1.2085289]
[1766482849225,3.382,2959.4,2958.4,1.2085289]
[1766482849418,3.382,2959.4,2958.5,3.382]
[1766482849918,3.382,2959.6,2958.9,1.20653834]
[1766482850114,0.00507125,2959.5,2958.9,0.00240706]
[1766482850420,0.00507125,2959.5,2958.9,7.06e-06]
[1766482850621,1.21160959,2959.5,2958.9,7.06e-06]
[1766482851022,1.21160959,2959.5,2958.5,3.382]
[1766482851922,1.20653834,2959.3,2958.5,3.38596738]
[1766482852130,4.58853834,2959.3,2958.5,3.38596738]
[1766482852429,3.382,2959.3,2958.5,3.38596738]
[1766482852609,0.00507125,2959.5,2958.6,1.20653834]
[1766482852926,3.382,2959.4,2958.6,1.20653834]
[1766482853620,3.382,2959.4,2958.5,3.38596738]
[1766482856916,3.381,2959.4,2958.5,3.38596738]
[1766482857424,3.381,2959.4,2958.5,0.00396738]
[1766482857628,3.381,2959.4,2958.6,3.381]
[1766482862131,3.381,2959.4,2958.6,4.58753834]
[1766482863919,0.00507125,2959.5,2958.8,1.20653834]
[1766482864126,3.381,2959.6,2959.2,1.20653834]
[1766482864420,3.381,2959.9,2959.1,3.381]
[1766482864729,3.381,2959.9,2958.5,0.00396738]
[1766482864730,1.20653834,2959.6,2958.5,0.00396738]
[1766482864927,3.381,2959.5,2958.6,3.381]
[1766482865130,0.00507125,2959.3,2958.8,0.00507125]
[1766482872030,0.00245738,2959.5,2958.8,0.00507125]
[1766482872231,3.38345738,2959.5,2958.8,1.21160959]
[1766482872438,3.38345738,2959.5,2958.8,0.00507125]
[1766482873040,0.00507125,2959.4,2958.8,0.00507125]
[1766482875842,3.38345738,2959.5,2958.8,1.21160959]
[1766482877039,0.00507125,2959.4,2958.8,0.00507125]
[1766482877538,0.00245738,2959.5,2959.2,1.20653834]
[1766482877730,0.00245738,2959.5,2959.0,1.20653834]
[1766482878144,3.381,2959.6,2959.1,3.381]
[1766482878535,3.38607125,2959.6,2959.1,3.381]
[1766482879145,3.38989554,2959.6,2959.1,3.381]
[1766482880932,0.169,2960.5,2959.4,1.20653834]
[1766482881132,3.38,2960.4,2959.2,1.20653834]
[1766482881545,1.20653834,2960.3,2959.2,1.20653834]
[1766482881749,1.20653834,2960.1,2959.1,3.381]
[1766482882045,0.00507125,2959.9,2959.1,3.381]
[1766482882346,0.00507125,2959.9,2959.0,5.831]
[1766482882347,0.00507125,2959.9,2958.8,1.21160959]
[1766482882555,0.00507125,2959.9,2958.9,3.38]
[1766482892255,1.21160959,2959.9,2958.9,3.38]
[1766482892454,1.21160959,2959.9,2958.8,5.83607125]
[1766482892455,3.38,2959.8,2958.8,0.00507125]
[1766482892658,3.38,2959.8,2958.9,9.21]
[1766482900361,3.38,2959.8,2959.0,1.20653834]
[1766482900662,3.38,2959.8,2958.9,9.21]
[1766482902267,0.00278116,2960.1,2959.4,1.20653834]
[1766482902566,0.00278116,2960.1,2959.5,3.38]
[1766482903274,0.006162,2960.1,2959.5,3.38]
[1766482906261,5.441,2960.7,2959.6,1.20653834]
[1766482906467,1.37552834,2960.8,2959.6,1.20653834]
[1766482906774,1.20653834,2960.6,2959.6,1.20653834]
[1766482907273,1.20653834,2960.6,2959.5,3.38]
[1766482907274,1.21035688,2960.6,2959.5,3.38]
[1766482907473,0.00381854,2960.6,2959.5,3.38]
[1766482907674,1.21035688,2960.6,2959.5,3.38]
[1766482908276,1.20653834,2960.4,2959.5,3.38]
[1766482908577,1.20653834,2960.2,2959.6,3.38]
[1766482909178,4.58653834,2960.4,2959.6,3.38]
[1766482910881,3.38,2960.4,2959.6,3.38]
[1766482911181,1.21035688,2960.6,2959.6,3.38]
[1766482911390,3.38,2960.5,2959.6,3.38]
[1766482916486,0.00381854,2960.6,2959.6,3.38]
[1766482916683,3.38,2960.5,2959.6,3.38]
[1766482918781,5.83381854,2960.6,2959.6,3.38]
[1766482918985,3.38,2960.4,2959.6,3.38]
[1766482919687,0.00381854,2960.6,2959.6,3.38]
[1766482920491,1.854e-05,2960.6,2959.6,3.38]
[1766482924395,1.854e-05,2960.6,2959.1,1.20616503]
[1766482924601,1.854e-05,2960.6,2959.2,17.658]
[1766482929397,1.20616503,2960.5,2959.2,9.209]
[1766482929700,3.379,2960.4,2959.2,9.209]
[1766482929900,1.984,2960.3,2959.2,9.209]
[1766482935102,3.379,2960.4,2959.3,1.20616503]
[1766482937813,1.854e-05,2960.6,2959.3,1.20616503]
[1766482937999,3.379,2960.5,2959.3,1.20616503]
[1766482939313,3.379,2960.5,2959.2,9.209]
[1766482939314,0.16894,2961.7,2960.1,1.20616503]
[1766482939610,3.54794,2961.7,2960.6,0.00507125]
[1766482939810,3.54794,2961.7,2960.7,3.379]
[1766482940199,3.55097443,2961.7,2960.7,3.38225029]
[1766482942414,3.38203443,2961.7,2960.7,3.38225029]
[1766482946022,0.00303443,2961.7,2960.7,3.38225029]
[1766482946324,3.379,2961.6,2960.7,3.38225029]
[1766482947524,3.379,2961.6,2960.7,0.00325029]
[1766482947825,3.379,2961.6,2960.8,3.379]
[1766482954033,0.00303443,2961.7,2960.8,3.379]
[1766482968232,0.1689,2962.4,2961.0,1.20616503]
[1766482968433,9.207,2962.3,2961.1,3.378]
[1766482969241,9.21086722,2962.3,2961.1,3.378]
[1766482971643,5.829,2962.2,2961.1,3.378]
[1766482971841,9.207,2962.2,2961.1,3.378]
[1766482972139,10.41181706,2962.2,2961.1,3.378]
[1766482973847,9.207,2962.2,2961.1,3.378]
[1766482974040,10.41181706,2962.2,2961.1,3.378]
[1766482975847,9.207,2962.2,2961.1,3.378]
[1766482976040,1.20481706,2962.0,2961.1,3.378]
[1766482976242,3.378,2961.9,2960.7,1.20806735]
[1766482976450,1.20481706,2961.8,2960.8,7.408]
[1766482977441,1.20481706,2961.6,2960.7,0.00325029]
[1766482977743,3.378,2961.5,2960.7,3.38125029]
[1766482984551,0.16891,2962.2,2961.0,1.20481706]
[1766482984758,3.378,2962.1,2961.1,3.378]
[1766482985658,1.20481706,2962.0,2961.1,3.378]
[1766482986259,3.378,2962.1,2961.1,3.378]
[1766482989569,1.37372706,2962.2,2961.1,3.378]
[1766482989868,0.00386722,2962.3,2961.4,1.20481706]
[1766482990159,0.00386722,2962.3,2961.5,3.378]
[1766482992471,0.00386722,2962.3,2961.6,1.20481706]
[1766482993067,0.00386722,2962.3,2961.5,3.378]
[1766482993266,0.00386722,2962.3,2961.5,4.58281706]
[1766482997170,0.00386722,2962.3,2961.5,3.378]
[1766482997370,1.37366706,2963.2,2962.0,1.20481706]
[1766482997670,3.377,2962.9,2962.2,0.00507125]
[1766482998060,0.0127,2962.8,2962.2,0.00507125]
[1766482998274,1.22106098,2962.8,2962.1,0.0127]
[1766482998466,1.20836098,2962.8,2961.9,3.377]
[1766482998667,0.0128,2962.7,2962.0,0.0128]
[1766482998976,0.0128,2962.7,2961.9,3.377]
[1766482999175,3.377,2962.6,2962.0,0.0128]
[1766482999373,0.00507125,2962.4,2961.9,0.00507125]
[1766483001762,0.16885,2963.2,2961.9,0.00507125]
[1766483001763,1.37363706,2963.8,2962.3,1.20481706]
[1766483001970,0.0129,2963.2,2962.4,3.377]
[1766483002164,0.0129,2963.2,2962.0,0.0129]
[1766483002165,1.20481706,2963.2,2962.0,0.0129]
[1766483002365,0.0217,2963.1,2962.1,3.377]
[1766483002671,4.58181706,2963.0,2962.1,3.377]
[1766483002876,4.58181706,2963.0,2962.2,0.0217]
[1766483003073,1.20481706,2962.8,2962.2,0.0217]
[1766483003274,3.377,2962.7,2962.0,0.0217]
[1766483003571,3.377,2962.7,2961.9,0.00507125]
[1766483005174,3.3991,2962.7,2962.0,0.0221]
[1766483005677,3.377,2962.7,2961.9,0.00507125]
[1766483007980,3.377,2962.7,2962.0,1.20481706]
[1766483008880,3.377,2962.7,2961.9,0.00507125]
[1766483009081,0.0221,2962.6,2962.0,0.0221]
[1766483009376,3.377,2962.7,2961.9,0.00507125]
[1766483009679,0.0221,2962.5,2961.9,3.40417125]
[1766483010482,3.377,2962.7,2961.9,3.38207125]
[1766483010682,0.0221,2962.6,2962.0,1.22691706]
[1766483012784,0.0221,2962.6,2962.0,0.0221]
[1766483013383,3.377,2962.7,2961.9,3.38207125]
[1766483013586,0.0221,2962.6,2962.0,0.0221]
[1766483013880,0.0221,2962.6,2962.0,1.22691706]
[1766483014385,3.377,2962.7,2962.0,1.20481706]
[1766483014682,3.3991,2962.7,2962.1,0.0221]
[1766483015088,3.377,2962.7,2962.0,1.20481706]
[1766483015383,0.0221,2962.6,2962.0,1.22691706]
[1766483016775,5.598,2963.0,2962.0,1.20481706]
[1766483017085,0.0221,2962.8,2962.1,0.0221]
[1766483017582,0.0221,2962.8,2962.0,1.20481706]
[1766483017784,0.0221,2962.8,2962.1,0.0221]
[1766483018184,0.0221,2962.8,2962.0,1.20481706]
[1766483018386,0.0217,2962.7,2962.1,0.0221]
[1766483018888,0.0221,2962.8,2962.0,1.20481706]
[1766483019082,0.0221,2962.8,2962.1,0.0221]
[1766483019482,3.377,2962.9,2962.0,1.20481706]
[1766483019683,3.3991,2962.9,2962.1,0.0221]
[1766483019886,3.3991,2962.9,2962.0,1.20481706]
[1766483020087,3.3991,2962.9,2962.1,0.0221]
[1766483020690,3.377,2962.9,2962.0,1.20481706]
[1766483020891,0.0221,2962.8,2962.1,0.0221]
[1766483021390,0.0221,2962.8,2962.0,1.20481706]
[1766483021590,0.0221,2962.8,2962.1,0.0221]
[1766483022588,3.377,2962.9,2962.1,0.0221]
[1766483022787,0.0221,2962.8,2962.1,0.0221]
[1766483023387,0.0221,2962.8,2962.0,1.20481706]
[1766483023587,0.0221,2962.8,2962.1,0.0221]
[1766483024094,0.0221,2962.8,2962.0,1.20481706]
[1766483024287,0.0221,2962.8,2962.2,1.20481706]
[1766483028411,0.0221,2962.8,2962.1,0.0221]
[1766483028602,3.377,2962.9,2962.0,1.20481706]
[1766483028895,0.0221,2962.7,2962.1,0.0221]
[1766483029099,3.377,2962.9,2962.0,1.20481706]
[1766483029299,0.0221,2962.7,2962.1,0.0221]
[1766483029709,0.0221,2962.9,2962.2,4.58181706]
[1766483029904,0.00277293,2963.1,2962.7,1.20481706]
[1766483030112,0.00277293,2963.1,2962.5,4.58181706]
[1766483031511,0.00277293,2963.1,2962.7,1.20481706]
[1766483031707,3.377,2963.3,2962.7,1.20481706]
[1766483032611,3.38114274,2963.3,2962.7,1.20481706]
[1766483032813,0.00414274,2963.3,2962.7,1.20481706]
[1766483033313,0.00414274,2963.3,2962.7,1.22781706]
[1766483033813,3.377,2963.5,2962.7,1.22781706]
[1766483034012,3.377,2963.5,2962.8,3.377]
[1766483034510,3.40010001,2963.5,2962.9,0.0231]
[1766483034897,3.40389018,2963.5,2962.9,0.02572404]
[1766483037404,3.38079017,2963.5,2962.3,1.20345256]
[1766483037709,3.38079017,2963.5,2962.4,3.376]
[1766483037909,0.02310001,2963.4,2962.5,1.20345256]
[1766483038213,0.02310001,2963.4,2962.6,3.376]
[1766483038411,3.37979017,2963.5,2962.6,3.3788238]
[1766483038612,0.02310001,2963.4,2962.7,0.0231]
[1766483038812,3.37979017,2963.5,2962.7,0.0231]
[1766483039002,3.37979017,2963.5,2962.6,3.3788238]
[1766483039206,0.02310001,2963.4,2962.7,0.0231]
[1766483041412,3.37979017,2963.5,2962.6,3.3788238]
[1766483042219,3.37979017,2963.5,2962.7,3.376]
[1766483043015,1.20345256,2964.5,2962.8,1.20345256]
[1766483043219,5.454,2964.0,2962.9,3.376]
[1766483043418,3.376,2963.9,2963.2,0.00506235]
[1766483043919,3.38024736,2963.9,2963.2,0.00506235]
[1766483044918,3.38024736,2963.9,2962.9,3.376]
[1766483045117,0.02320001,2963.8,2962.6,0.0028238]
[1766483045313,0.02320001,2963.8,2962.7,3.376]
[1766483045618,3.54905736,2963.9,2962.7,3.376]
[1766483045920,0.0233,2963.7,2962.8,0.0233]
[1766483046121,3.38103268,2963.6,2963.0,0.00506235]
[1766483047110,3.38103268,2963.6,2962.7,3.376]
[1766483047312,0.0234,2963.5,2962.6,0.0028238]
[1766483047610,0.0234,2963.5,2962.6,3.3788238]
[1766483047807,3.38103268,2963.6,2962.6,3.4022238]
[1766483048220,3.38103268,2963.6,2962.8,0.00506235]
[1766483048618,0.0234,2963.5,2962.8,0.00506235]
[1766483049124,3.38103268,2963.6,2962.8,0.00506235]
[1766483049326,0.0234,2963.5,2962.8,0.00506235]
[1766483050217,3.38103268,2963.6,2962.8,0.00506235]
[1766483050418,0.0108,2963.5,2962.8,0.00506235]
[1766483050923,3.38103268,2963.6,2962.8,0.00506235]
[1766483051125,3.38103268,2963.6,2962.6,3.3788238]
[1766483052023,3.38103268,2963.6,2962.8,0.00506235]
[1766483052224,0.0109,2963.5,2962.8,0.00506235]
[1766483052712,3.38103268,2963.6,2962.8,0.00506235]
[1766483054729,3.39193268,2963.6,2962.9,0.0109]
[1766483055433,3.38103268,2963.6,2962.8,0.00506235]
[1766483056528,3.38103268,2963.6,2962.9,3.376]
[1766483057535,0.0109,2963.5,2962.9,3.376]
[1766483058026,3.38103268,2963.6,2962.9,3.376]
[1766483060932,3.38103268,2963.6,2962.7,3.376]
[1766483062031,3.38103268,2963.6,2962.9,0.00506235]
[1766483062934,3.38103268,2963.6,2962.7,3.376]
[1766483063234,0.0352,2963.5,2962.7,3.376]
[1766483063937,0.0352,2963.5,2962.8,0.00506235]
[1766483064132,3.38103268,2963.6,2962.8,0.00506235]
[1766483064327,0.0348,2963.4,2962.8,0.00506235]
[1766483064526,3.376,2963.3,2962.7,3.376]
[1766483065024,0.0348,2963.2,2962.7,3.376]
[1766483065438,0.035,2963.1,2962.5,0.03499999]
[1766483065625,1.37731524,2963.6,2962.4,3.376]
[1766483065626,3.376,2963.0,2962.4,3.376]
[1766483066022,3.376,2963.0,2962.2,0.03499999]
[1766483066226,3.376,2963.0,2962.1,3.376]
[1766483066426,0.0351,2962.9,2962.2,0.0351]
[1766483069138,3.3535,2963.0,2962.1,4.58191179]
[1766483073145,0.16885,2963.3,2962.4,1.20345256]
[1766483073344,3.376,2963.2,2962.4,4.57945256]
[1766483073642,3.376,2963.2,2962.5,0.0355]
[1766483074143,3.376,2963.2,2962.4,4.57945256]
[1766483074343,3.376,2963.2,2962.5,0.0355]
[1766483075545,3.4115,2963.2,2962.4,4.57945256]
[1766483075747,3.376,2963.2,2962.4,3.376]
[1766483076042,0.0355,2963.1,2962.5,0.0355]
[1766483076344,0.0355,2963.1,2962.1,0.00245923]
[1766483076545,3.376,2963.2,2962.3,0.0355]
[1766483076747,3.376,2963.2,2962.1,3.37845923]
[1766483076948,0.0355,2963.1,2962.2,0.0355]
[1766483078246,3.376,2963.2,2962.1,4.58191179]
[1766483078546,0.0355,2963.1,2962.2,0.0355]
[1766483079047,3.376,2963.2,2962.1,4.58191179]
[1766483080951,3.376,2963.2,2962.1,3.37845923]
[1766483085851,3.376,2963.2,2962.2,1.20345256]
[1766483086153,0.16885,2963.3,2962.5,1.20345256]
[1766483086452,3.376,2963.2,2962.5,1.20345256]
[1766483087057,0.16885,2963.3,2962.5,1.20345256]
[1766483087250,3.376,2963.2,2962.5,1.20345256]